[Event "Titled Tuesday Blitz March 22 Early 2022"]
[White "Lewtak, Damian"]
[Black "Danilenko, Dmitriy"]
[WhiteFideId "1141724"]
[BlackFideId "14120844"]
[WhiteElo "2362"]
[BlackElo "2606"]
[Result "0-1"]
[Round "02"]
[TimeControl "180+1"]
[Date "2022.03.22"]
[WhiteClock "0:00:39"]
[BlackClock "0:00:46"]

1. d4 {[%clk 0:03:00]}  f5 {[%clk 0:03:00]} 2. Nf3 {[%clk 0:03:01]}  Nf6 {[%clk 0:03:00]} 3. c4 {[%clk 0:03:01]}  g6 {[%clk 0:03:00]} 4. Nc3 {[%clk 0:03:02]}  Bg7 {[%clk 0:03:01]} 5. g3 {[%clk 0:03:01]}  O-O {[%clk 0:03:02]} 6. Bg2 {[%clk 0:03:02]}  d6 {[%clk 0:03:02]} 7. O-O {[%clk 0:03:02]}  Qe8 {[%clk 0:03:03]} 8. Re1 {[%clk 0:03:03]}  Qf7 {[%clk 0:03:03]} 9. b3 {[%clk 0:02:59]}  Ne4 {[%clk 0:03:04]} 10. Bb2 {[%clk 0:02:58]}  c5 {[%clk 0:03:04]} 11. Qd3 {[%clk 0:02:55]}  Nc6 {[%clk 0:02:59]} 12. Nxe4 {[%clk 0:02:44]}  fxe4 {[%clk 0:03:00]} 13. Qxe4 {[%clk 0:02:44]}  cxd4 {[%clk 0:02:58]} 14. Qd5 {[%clk 0:02:22]}  Be6 {[%clk 0:02:49]} 15. Qb5 {[%clk 0:02:22]}  Rab8 {[%clk 0:02:44]} 16. Rf1 {[%clk 0:02:17]}  a6 {[%clk 0:02:43]} 17. Qb6 {[%clk 0:02:12]}  Bg4 {[%clk 0:01:24]} 18. h3 {[%clk 0:02:01]}  Bxf3 {[%clk 0:01:23]} 19. Bxf3 {[%clk 0:02:02]}  d3 {[%clk 0:01:14]} 20. Qe3 {[%clk 0:01:30]}  dxe2 {[%clk 0:01:07]} 21. Bd5 {[%clk 0:01:23]}  exf1=Q+ {[%clk 0:01:07]} 22. Rxf1 {[%clk 0:01:22]}  Bxb2 {[%clk 0:01:07]} 23. Bxf7+ {[%clk 0:01:18]}  Rxf7 {[%clk 0:01:08]} 24. Kg2 {[%clk 0:01:18]}  Bd4 {[%clk 0:01:08]} 25. Qe4 {[%clk 0:01:17]}  e5 {[%clk 0:01:08]} 26. a3 {[%clk 0:01:15]}  Rbf8 {[%clk 0:01:07]} 27. f3 {[%clk 0:01:15]}  Kg7 {[%clk 0:01:07]} 28. b4 {[%clk 0:01:14]}  Ne7 {[%clk 0:01:07]} 29. h4 {[%clk 0:01:13]}  Nf5 {[%clk 0:01:07]} 30. Re1 {[%clk 0:00:59]}  h5 {[%clk 0:01:07]} 31. a4 {[%clk 0:00:56]}  Rc8 {[%clk 0:01:07]} 32. Rc1 {[%clk 0:00:52]}  Ne3+ {[%clk 0:01:03]} 33. Kh3 {[%clk 0:00:52]}  Rxc4 {[%clk 0:00:55]} 34. Re1 {[%clk 0:00:44]}  Rc3 {[%clk 0:00:52]} 35. b5 {[%clk 0:00:43]}  axb5 {[%clk 0:00:51]} 36. axb5 {[%clk 0:00:44]}  Nc4 {[%clk 0:00:48]} 37. f4 {[%clk 0:00:39]}  Bf2 {[%clk 0:00:46]} 0-1


[Site "https://www.chess.com"]

[Event "Titled Tuesday Blitz March 22 Early 2022"]
[White "Martinez Alcantara, Jose Eduardo"]
[Black "Jary, Sergey"]
[WhiteFideId "3805662"]
[BlackFideId "14110350"]
[WhiteElo "2690"]
[BlackElo "2260"]
[Result "1-0"]
[Round "02"]
[TimeControl "180+1"]
[Date "2022.03.22"]
[WhiteClock "0:01:03"]
[BlackClock "0:00:02"]

1. e4 {[%clk 0:03:00]}  c5 {[%clk 0:02:59]} 2. Nf3 {[%clk 0:03:01]}  Nc6 {[%clk 0:02:59]} 3. Nc3 {[%clk 0:03:01]}  g6 {[%clk 0:02:59]} 4. Bc4 {[%clk 0:03:00]}  Bg7 {[%clk 0:02:59]} 5. d3 {[%clk 0:03:01]}  e6 {[%clk 0:02:59]} 6. a3 {[%clk 0:03:01]}  Nge7 {[%clk 0:02:58]} 7. Ba2 {[%clk 0:03:02]}  O-O {[%clk 0:02:58]} 8. O-O {[%clk 0:03:02]}  d5 {[%clk 0:02:56]} 9. Re1 {[%clk 0:02:58]}  b6 {[%clk 0:02:54]} 10. Bf4 {[%clk 0:02:57]}  Bb7 {[%clk 0:02:42]} 11. e5 {[%clk 0:02:50]}  Rc8 {[%clk 0:02:34]} 12. Qd2 {[%clk 0:02:50]}  Nf5 {[%clk 0:02:27]} 13. Ne2 {[%clk 0:02:39]}  Qc7 {[%clk 0:02:22]} 14. Ng3 {[%clk 0:02:26]}  Nxg3 {[%clk 0:02:17]} 15. hxg3 {[%clk 0:02:26]}  Nd4 {[%clk 0:01:54]} 16. Nh2 {[%clk 0:02:22]}  Rcd8 {[%clk 0:01:47]} 17. c3 {[%clk 0:02:22]}  Nc6 {[%clk 0:01:43]} 18. Ng4 {[%clk 0:02:23]}  d4 {[%clk 0:01:36]} 19. Bh6 {[%clk 0:02:04]}  dxc3 {[%clk 0:01:24]} 20. bxc3 {[%clk 0:02:05]}  Nxe5 {[%clk 0:01:12]} 21. Nxe5 {[%clk 0:02:04]}  Bxe5 {[%clk 0:01:11]} 22. Bxf8 {[%clk 0:02:02]}  Rxf8 {[%clk 0:01:10]} 23. d4 {[%clk 0:01:58]}  cxd4 {[%clk 0:01:07]} 24. cxd4 {[%clk 0:01:59]}  Rd8 {[%clk 0:01:08]} 25. Rac1 {[%clk 0:01:40]}  Qd6 {[%clk 0:01:01]} 26. d5 {[%clk 0:01:41]}  Bxd5 {[%clk 0:00:51]} 27. Bxd5 {[%clk 0:01:40]}  Qxd5 {[%clk 0:00:51]} 28. Qxd5 {[%clk 0:01:26]}  Rxd5 {[%clk 0:00:51]} 29. Red1 {[%clk 0:01:26]}  Ra5 {[%clk 0:00:48]} 30. Rd3 {[%clk 0:01:26]}  Kg7 {[%clk 0:00:46]} 31. Kf1 {[%clk 0:01:24]}  b5 {[%clk 0:00:33]} 32. Rc5 {[%clk 0:01:21]}  Bf6 {[%clk 0:00:30]} 33. Rc7 {[%clk 0:01:20]}  Be5 {[%clk 0:00:14]} 34. Rb7 {[%clk 0:01:16]}  h5 {[%clk 0:00:08]} 35. Rf3 {[%clk 0:01:12]}  Bf6 {[%clk 0:00:07]} 36. Rd3 {[%clk 0:01:12]}  Be5 {[%clk 0:00:07]} 37. Ke2 {[%clk 0:01:09]}  a6 {[%clk 0:00:04]} 38. Kd1 {[%clk 0:01:09]}  g5 {[%clk 0:00:02]} 39. Rf3 {[%clk 0:01:03]} 1-0


[Site "https://www.chess.com"]

[Event "Titled Tuesday Blitz March 22 Early 2022"]
[White "MikeKorovin"]
[Black "Mikhalsky, Vladimir"]
[BlackFideId "14144352"]
[WhiteElo "2734"]
[BlackElo "2301"]
[Result "1-0"]
[Round "02"]
[TimeControl "180+1"]
[Date "2022.03.22"]
[WhiteClock "0:02:07"]
[BlackClock "0:01:02"]

1. Nf3 {[%clk 0:02:40]}  c5 {[%clk 0:02:59]} 2. b3 {[%clk 0:02:40]}  Nc6 {[%clk 0:02:57]} 3. Bb2 {[%clk 0:02:41]}  d6 {[%clk 0:02:56]} 4. e3 {[%clk 0:02:41]}  e5 {[%clk 0:02:54]} 5. d4 {[%clk 0:02:42]}  cxd4 {[%clk 0:02:53]} 6. exd4 {[%clk 0:02:43]}  e4 {[%clk 0:02:53]} 7. Nfd2 {[%clk 0:02:43]}  d5 {[%clk 0:02:47]} 8. c4 {[%clk 0:02:44]}  f5 {[%clk 0:02:47]} 9. cxd5 {[%clk 0:02:41]}  Nb4 {[%clk 0:02:47]} 10. Nc3 {[%clk 0:02:40]}  Nf6 {[%clk 0:02:46]} 11. Bb5+ {[%clk 0:02:37]}  Bd7 {[%clk 0:02:44]} 12. Bc4 {[%clk 0:02:37]}  Qa5 {[%clk 0:02:15]} 13. O-O {[%clk 0:02:34]}  Bd6 {[%clk 0:02:11]} 14. a3 {[%clk 0:02:32]}  Nbxd5 {[%clk 0:02:11]} 15. Nxd5 {[%clk 0:02:31]}  Nxd5 {[%clk 0:02:10]} 16. Nxe4 {[%clk 0:02:31]}  fxe4 {[%clk 0:02:00]} 17. Qh5+ {[%clk 0:02:31]}  g6 {[%clk 0:01:55]} 18. Qxd5 {[%clk 0:02:31]}  Qxd5 {[%clk 0:01:47]} 19. Bxd5 {[%clk 0:02:32]}  Bc6 {[%clk 0:01:45]} 20. Bxc6+ {[%clk 0:02:29]}  bxc6 {[%clk 0:01:45]} 21. d5 {[%clk 0:02:29]}  O-O {[%clk 0:01:41]} 22. dxc6 {[%clk 0:02:30]}  Rab8 {[%clk 0:01:37]} 23. b4 {[%clk 0:02:28]}  a5 {[%clk 0:01:37]} 24. Rfd1 {[%clk 0:02:28]}  Bf4 {[%clk 0:01:31]} 25. g3 {[%clk 0:02:17]}  Bg5 {[%clk 0:01:31]} 26. c7 {[%clk 0:02:17]}  Rb7 {[%clk 0:01:24]} 27. Rd7 {[%clk 0:02:14]}  Rc8 {[%clk 0:01:23]} 28. Be5 {[%clk 0:02:09]}  axb4 {[%clk 0:01:21]} 29. axb4 {[%clk 0:02:10]}  Rxb4 {[%clk 0:01:21]} 30. Rg7+ {[%clk 0:02:09]}  Kf8 {[%clk 0:01:18]} 31. Rxh7 {[%clk 0:02:09]}  Ke8 {[%clk 0:01:07]} 32. Rd1 {[%clk 0:02:07]}  Rc4 {[%clk 0:01:03]} 33. Rh8+ {[%clk 0:02:06]}  Kf7 {[%clk 0:01:02]} 34. Rxc8 {[%clk 0:02:07]} 1-0


[Site "https://www.chess.com"]

[Event "Titled Tuesday Blitz March 22 Early 2022"]
[White "Mkrtchyan, Mariam"]
[Black "Jannatul, Ferdous"]
[WhiteFideId "13310828"]
[BlackFideId "10212590"]
[WhiteElo "1984"]
[BlackElo "1707"]
[Result "1-0"]
[Round "02"]
[TimeControl "180+1"]
[Date "2022.03.22"]
[WhiteClock "0:02:26"]
[BlackClock "0:02:12"]

1. Nf3 {[%clk 0:03:00]}  c5 {[%clk 0:03:00]} 2. c4 {[%clk 0:02:59]}  d5 {[%clk 0:03:00]} 3. cxd5 {[%clk 0:02:58]}  Qxd5 {[%clk 0:03:00]} 4. Nc3 {[%clk 0:02:57]}  Qd8 {[%clk 0:03:00]} 5. g3 {[%clk 0:02:55]}  Nc6 {[%clk 0:03:01]} 6. Bg2 {[%clk 0:02:55]}  Nf6 {[%clk 0:03:01]} 7. O-O {[%clk 0:02:54]}  Bg4 {[%clk 0:03:01]} 8. d3 {[%clk 0:02:50]}  e6 {[%clk 0:03:01]} 9. Be3 {[%clk 0:02:48]}  Nd5 {[%clk 0:02:59]} 10. Bd2 {[%clk 0:02:44]}  Be7 {[%clk 0:02:56]} 11. Rc1 {[%clk 0:02:43]}  O-O {[%clk 0:02:53]} 12. a3 {[%clk 0:02:43]}  Rc8 {[%clk 0:02:52]} 13. Ne4 {[%clk 0:02:41]}  b6 {[%clk 0:02:50]} 14. Qa4 {[%clk 0:02:39]}  Qc7 {[%clk 0:02:33]} 15. Nc3 {[%clk 0:02:31]}  Rfd8 {[%clk 0:02:25]} 16. Qxg4 {[%clk 0:02:29]}  Nd4 {[%clk 0:02:12]} 17. Nxd4 {[%clk 0:02:26]}  cxd4 {[%clk 0:02:12]} 18. Nxd5 {[%clk 0:02:26]} 1-0


[Site "https://www.chess.com"]

[Event "Titled Tuesday Blitz March 22 Early 2022"]
[White "Molina, Roberto Junio Brito"]
[Black "Gracia Alvarez, Gerardo Antonio"]
[WhiteFideId "2109450"]
[BlackFideId "5109124"]
[WhiteElo "2432"]
[BlackElo "2139"]
[Result "1-0"]
[Round "02"]
[TimeControl "180+1"]
[Date "2022.03.22"]
[WhiteClock "0:01:19"]
[BlackClock "0:00:18"]

1. d4 {[%clk 0:03:00]}  Nf6 {[%clk 0:02:59]} 2. c4 {[%clk 0:03:00]}  c5 {[%clk 0:03:00]} 3. d5 {[%clk 0:03:00]}  b5 {[%clk 0:03:00]} 4. cxb5 {[%clk 0:03:01]}  a6 {[%clk 0:03:00]} 5. b6 {[%clk 0:03:02]}  e6 {[%clk 0:02:59]} 6. Nc3 {[%clk 0:03:02]}  Nxd5 {[%clk 0:02:55]} 7. Nxd5 {[%clk 0:03:02]}  exd5 {[%clk 0:02:55]} 8. Qxd5 {[%clk 0:03:03]}  Nc6 {[%clk 0:02:53]} 9. Nf3 {[%clk 0:03:03]}  Be7 {[%clk 0:02:44]} 10. e3 {[%clk 0:02:46]}  O-O {[%clk 0:02:42]} 11. Be2 {[%clk 0:02:46]}  Rb8 {[%clk 0:02:39]} 12. O-O {[%clk 0:02:45]}  Qxb6 {[%clk 0:02:28]} 13. Rd1 {[%clk 0:02:43]}  Bf6 {[%clk 0:02:24]} 14. Rb1 {[%clk 0:02:41]}  Bb7 {[%clk 0:02:12]} 15. Qf5 {[%clk 0:02:36]}  Ne7 {[%clk 0:02:00]} 16. Qc2 {[%clk 0:02:34]}  d5 {[%clk 0:01:58]} 17. b3 {[%clk 0:02:34]}  Rbc8 {[%clk 0:01:54]} 18. Bb2 {[%clk 0:02:33]}  Bxb2 {[%clk 0:01:53]} 19. Rxb2 {[%clk 0:02:33]}  Rfd8 {[%clk 0:01:53]} 20. h3 {[%clk 0:02:31]}  h6 {[%clk 0:01:52]} 21. Qc3 {[%clk 0:02:29]}  Nf5 {[%clk 0:01:42]} 22. Qe5 {[%clk 0:02:28]}  Qe6 {[%clk 0:01:38]} 23. Rc2 {[%clk 0:02:26]}  Nd6 {[%clk 0:01:10]} 24. Qxe6 {[%clk 0:02:19]}  fxe6 {[%clk 0:01:10]} 25. Rdc1 {[%clk 0:02:20]}  Ne4 {[%clk 0:01:09]} 26. Ne5 {[%clk 0:02:18]}  Rc7 {[%clk 0:01:03]} 27. Bd3 {[%clk 0:02:15]}  Rdc8 {[%clk 0:00:59]} 28. Bxe4 {[%clk 0:01:54]}  dxe4 {[%clk 0:01:00]} 29. Nc4 {[%clk 0:01:48]}  Kf8 {[%clk 0:00:39]} 30. Nd6 {[%clk 0:01:46]}  Rd8 {[%clk 0:00:39]} 31. Nxb7 {[%clk 0:01:46]}  Rxb7 {[%clk 0:00:40]} 32. Rxc5 {[%clk 0:01:46]}  Rd2 {[%clk 0:00:40]} 33. R5c2 {[%clk 0:01:44]}  Rxc2 {[%clk 0:00:40]} 34. Rxc2 {[%clk 0:01:45]}  Ke7 {[%clk 0:00:40]} 35. Rc4 {[%clk 0:01:44]}  Rd7 {[%clk 0:00:39]} 36. Rxe4 {[%clk 0:01:39]}  Rd1+ {[%clk 0:00:39]} 37. Kh2 {[%clk 0:01:40]}  Rd2 {[%clk 0:00:40]} 38. Ra4 {[%clk 0:01:40]}  Rxf2 {[%clk 0:00:39]} 39. Kg3 {[%clk 0:01:38]}  Re2 {[%clk 0:00:38]} 40. Kf3 {[%clk 0:01:37]}  Rb2 {[%clk 0:00:37]} 41. Rxa6 {[%clk 0:01:37]}  Kf6 {[%clk 0:00:37]} 42. h4 {[%clk 0:01:30]}  h5 {[%clk 0:00:36]} 43. g3 {[%clk 0:01:30]}  Kf5 {[%clk 0:00:35]} 44. Ra5+ {[%clk 0:01:29]}  Kf6 {[%clk 0:00:35]} 45. Ra4 {[%clk 0:01:26]}  Ke5 {[%clk 0:00:30]} 46. b4 {[%clk 0:01:23]}  g6 {[%clk 0:00:28]} 47. Ra5+ {[%clk 0:01:23]}  Kd6 {[%clk 0:00:26]} 48. a3 {[%clk 0:01:20]}  Rb1 {[%clk 0:00:18]} 49. Rg5 {[%clk 0:01:19]}  Rb3 {[%clk 0:00:17]} 50. Rxg6 {[%clk 0:01:18]}  Rxa3 {[%clk 0:00:18]} 51. Rg5 {[%clk 0:01:19]} 1-0


[Site "https://www.chess.com"]

[Event "Titled Tuesday Blitz March 22 Early 2022"]
[White "Myshakov, Fyodor"]
[Black "Zhigalko, Sergei"]
[WhiteFideId "14111284"]
[BlackFideId "13502956"]
[WhiteElo "2310"]
[BlackElo "2662"]
[Result "0-1"]
[Round "02"]
[TimeControl "180+1"]
[Date "2022.03.22"]
[WhiteClock "0:00:02"]
[BlackClock "0:00:04"]

1. c4 {[%clk 0:02:52]}  e5 {[%clk 0:02:59]} 2. Nc3 {[%clk 0:02:52]}  Nf6 {[%clk 0:02:59]} 3. Nf3 {[%clk 0:02:52]}  Nc6 {[%clk 0:02:58]} 4. g3 {[%clk 0:02:45]}  Bb4 {[%clk 0:02:57]} 5. Nd5 {[%clk 0:02:41]}  Ba5 {[%clk 0:02:56]} 6. Bg2 {[%clk 0:02:38]}  O-O {[%clk 0:02:56]} 7. O-O {[%clk 0:02:39]}  Re8 {[%clk 0:02:52]} 8. d3 {[%clk 0:02:38]}  h6 {[%clk 0:02:50]} 9. a3 {[%clk 0:02:38]}  Nxd5 {[%clk 0:02:41]} 10. cxd5 {[%clk 0:02:38]}  Nd4 {[%clk 0:02:40]} 11. Nxd4 {[%clk 0:02:30]}  exd4 {[%clk 0:02:40]} 12. b4 {[%clk 0:02:29]}  Bb6 {[%clk 0:02:40]} 13. Bb2 {[%clk 0:02:28]}  d6 {[%clk 0:02:37]} 14. Rc1 {[%clk 0:02:28]}  Bg4 {[%clk 0:02:36]} 15. Re1 {[%clk 0:02:28]}  a5 {[%clk 0:02:36]} 16. Rc4 {[%clk 0:02:26]}  axb4 {[%clk 0:02:34]} 17. axb4 {[%clk 0:02:25]}  Ra2 {[%clk 0:02:34]} 18. Bxd4 {[%clk 0:02:17]}  Raxe2 {[%clk 0:01:26]} 19. Rxe2 {[%clk 0:02:13]}  Bxe2 {[%clk 0:01:13]} 20. Qd2 {[%clk 0:02:06]}  Bxd4 {[%clk 0:01:08]} 21. Rxd4 {[%clk 0:02:05]}  Qf6 {[%clk 0:01:00]} 22. Rc4 {[%clk 0:01:51]}  Bf3 {[%clk 0:00:48]} 23. Rc1 {[%clk 0:00:42]}  Bxg2 {[%clk 0:00:07]} 24. Kxg2 {[%clk 0:00:43]}  Re7 {[%clk 0:00:07]} 25. Re1 {[%clk 0:00:31]}  Kf8 {[%clk 0:00:04]} 26. Re4 {[%clk 0:00:24]}  Qf5 {[%clk 0:00:04]} 27. Rxe7 {[%clk 0:00:14]}  Kxe7 {[%clk 0:00:05]} 28. Qe3+ {[%clk 0:00:14]}  Kd7 {[%clk 0:00:04]} 29. Qd4 {[%clk 0:00:11]}  g5 {[%clk 0:00:03]} 30. h3 {[%clk 0:00:10]}  h5 {[%clk 0:00:04]} 31. g4 {[%clk 0:00:10]}  hxg4 {[%clk 0:00:03]} 32. hxg4 {[%clk 0:00:11]}  Qe5 {[%clk 0:00:01]} 33. Qc4 {[%clk 0:00:06]}  f6 {[%clk 0:00:01]} 34. Qb5+ {[%clk 0:00:05]}  Kc8 {[%clk 0:00:02]} 35. Qc4 {[%clk 0:00:05]}  Kd8 {[%clk 0:00:02]} 36. Qb5 {[%clk 0:00:04]}  c6 {[%clk 0:00:02]} 37. Qxb7 {[%clk 0:00:03]}  Qxd5+ {[%clk 0:00:03]} 38. Kg1 {[%clk 0:00:03]}  Qd4 {[%clk 0:00:03]} 39. Qxc6 {[%clk 0:00:03]}  Qxg4+ {[%clk 0:00:03]} 40. Kf1 {[%clk 0:00:03]}  Qxb4 {[%clk 0:00:04]} 41. Qd5 {[%clk 0:00:03]}  Qb1+ {[%clk 0:00:03]} 42. Kg2 {[%clk 0:00:03]}  Kc7 {[%clk 0:00:04]} 43. Qf7+ {[%clk 0:00:02]}  Kc6 {[%clk 0:00:04]} 44. Qc4+ {[%clk 0:00:03]}  Kd7 {[%clk 0:00:04]} 45. Qf7+ {[%clk 0:00:03]}  Kc6 {[%clk 0:00:04]} 46. Qc4+ {[%clk 0:00:03]}  Kb6 {[%clk 0:00:04]} 47. Qd4+ {[%clk 0:00:04]}  Kc7 {[%clk 0:00:04]} 48. Qc4+ {[%clk 0:00:03]}  Kb8 {[%clk 0:00:05]} 49. Qd4 {[%clk 0:00:03]}  Qb7+ {[%clk 0:00:04]} 50. f3 {[%clk 0:00:02]}  Qe7 {[%clk 0:00:05]} 51. Qb4+ {[%clk 0:00:02]}  Kc7 {[%clk 0:00:05]} 52. Qc4+ {[%clk 0:00:02]}  Kd7 {[%clk 0:00:05]} 53. Qb5+ {[%clk 0:00:02]}  Ke6 {[%clk 0:00:05]} 54. Qc4+ {[%clk 0:00:02]}  d5 {[%clk 0:00:05]} 55. Qc8+ {[%clk 0:00:03]}  Kf7 {[%clk 0:00:05]} 56. Qf5 {[%clk 0:00:02]}  Qe2+ {[%clk 0:00:05]} 57. Kg1 {[%clk 0:00:02]}  Qe1+ {[%clk 0:00:05]} 58. Kg2 {[%clk 0:00:02]}  Qe2+ {[%clk 0:00:05]} 59. Kg1 {[%clk 0:00:03]}  Qe5 {[%clk 0:00:06]} 60. Qh7+ {[%clk 0:00:03]}  Ke8 {[%clk 0:00:06]} 61. Qg8+ {[%clk 0:00:03]}  Kd7 {[%clk 0:00:07]} 62. Qf7+ {[%clk 0:00:04]}  Kc6 {[%clk 0:00:07]} 63. Qg6 {[%clk 0:00:04]}  Kc5 {[%clk 0:00:05]} 64. Kg2 {[%clk 0:00:04]}  Kd4 {[%clk 0:00:05]} 65. Kg1 {[%clk 0:00:03]}  Ke3 {[%clk 0:00:05]} 66. Kg2 {[%clk 0:00:03]}  Qb2+ {[%clk 0:00:04]} 67. Kh1 {[%clk 0:00:02]}  Kf2 {[%clk 0:00:04]} 0-1


[Site "https://www.chess.com"]

[Event "Titled Tuesday Blitz March 22 Early 2022"]
[White "Nikulina, Alena"]
[Black "Pesotskiy, Mikhail"]
[WhiteFideId "4172051"]
[BlackFideId "34164453"]
[WhiteElo "1778"]
[BlackElo "2010"]
[Result "0-1"]
[Round "02"]
[TimeControl "180+1"]
[Date "2022.03.22"]
[WhiteClock "0:00:38"]
[BlackClock "0:01:22"]

1. e4 {[%clk 0:03:00]}  e6 {[%clk 0:02:59]} 2. d4 {[%clk 0:02:58]}  d5 {[%clk 0:02:59]} 3. exd5 {[%clk 0:02:58]}  exd5 {[%clk 0:03:00]} 4. c4 {[%clk 0:02:58]}  Nf6 {[%clk 0:03:00]} 5. Nc3 {[%clk 0:02:54]}  Bb4 {[%clk 0:03:00]} 6. Nf3 {[%clk 0:02:54]}  O-O {[%clk 0:03:01]} 7. Bd3 {[%clk 0:02:52]}  dxc4 {[%clk 0:03:01]} 8. Bxc4 {[%clk 0:02:52]}  Nbd7 {[%clk 0:03:02]} 9. O-O {[%clk 0:02:51]}  Nb6 {[%clk 0:03:03]} 10. Bb3 {[%clk 0:02:50]}  Re8 {[%clk 0:03:02]} 11. Bg5 {[%clk 0:02:48]}  Be6 {[%clk 0:03:02]} 12. Bc2 {[%clk 0:02:47]}  h6 {[%clk 0:02:59]} 13. Bh4 {[%clk 0:02:46]}  Be7 {[%clk 0:02:51]} 14. Qd3 {[%clk 0:02:44]}  Bc4 {[%clk 0:02:51]} 15. Qf5 {[%clk 0:02:34]}  g6 {[%clk 0:02:51]} 16. Qf4 {[%clk 0:02:20]}  Bxf1 {[%clk 0:02:50]} 17. Rxf1 {[%clk 0:02:14]}  Kg7 {[%clk 0:02:28]} 18. Ne5 {[%clk 0:02:06]}  Rf8 {[%clk 0:02:28]} 19. Re1 {[%clk 0:01:49]}  Nfd5 {[%clk 0:02:17]} 20. Bxe7 {[%clk 0:01:40]}  Nxf4 {[%clk 0:02:14]} 21. Bxd8 {[%clk 0:01:40]}  Raxd8 {[%clk 0:02:15]} 22. g3 {[%clk 0:01:35]}  Ne6 {[%clk 0:01:59]} 23. Nxg6 {[%clk 0:01:30]}  Nxd4 {[%clk 0:01:56]} 24. Nxf8 {[%clk 0:01:21]}  Nf3+ {[%clk 0:01:56]} 25. Kf1 {[%clk 0:01:16]}  Nxe1 {[%clk 0:01:57]} 26. Kxe1 {[%clk 0:01:04]}  Kxf8 {[%clk 0:01:57]} 27. Nb5 {[%clk 0:01:00]}  c6 {[%clk 0:01:50]} 28. Nc3 {[%clk 0:01:00]}  Nc4 {[%clk 0:01:48]} 29. b3 {[%clk 0:00:54]}  Na3 {[%clk 0:01:28]} 30. Be4 {[%clk 0:00:48]}  a6 {[%clk 0:01:24]} 31. Na4 {[%clk 0:00:41]}  Re8 {[%clk 0:01:22]} 32. f3 {[%clk 0:00:38]}  f5 {[%clk 0:01:22]} 0-1


[Site "https://www.chess.com"]

[Event "Titled Tuesday Blitz March 22 Early 2022"]
[White "Perera Alfonso, Rene Humberto"]
[Black "Mangialardo, Tiago Carvalho"]
[WhiteFideId "3514722"]
[BlackFideId "2130718"]
[WhiteElo "2313"]
[BlackElo "2087"]
[Result "1-0"]
[Round "02"]
[TimeControl "180+1"]
[Date "2022.03.22"]
[WhiteClock "0:02:32"]
[BlackClock "0:00:15"]

1. e4 {[%clk 0:03:00]}  e5 {[%clk 0:02:58]} 2. Nf3 {[%clk 0:03:00]}  Nc6 {[%clk 0:02:58]} 3. Bb5 {[%clk 0:03:00]}  Bc5 {[%clk 0:02:44]} 4. O-O {[%clk 0:03:00]}  d6 {[%clk 0:02:42]} 5. c3 {[%clk 0:02:58]}  a6 {[%clk 0:02:26]} 6. Ba4 {[%clk 0:02:57]}  b5 {[%clk 0:02:24]} 7. Bb3 {[%clk 0:02:56]}  Be6 {[%clk 0:02:00]} 8. d4 {[%clk 0:02:55]}  exd4 {[%clk 0:01:49]} 9. cxd4 {[%clk 0:02:56]}  Bxb3 {[%clk 0:01:41]} 10. axb3 {[%clk 0:02:57]}  Bb6 {[%clk 0:01:35]} 11. Bg5 {[%clk 0:02:54]}  Nge7 {[%clk 0:01:16]} 12. Nc3 {[%clk 0:02:53]}  Qd7 {[%clk 0:01:08]} 13. Nxb5 {[%clk 0:02:49]}  O-O {[%clk 0:00:50]} 14. Nc3 {[%clk 0:02:48]}  h6 {[%clk 0:00:48]} 15. Bh4 {[%clk 0:02:47]}  Ng6 {[%clk 0:00:47]} 16. Bg3 {[%clk 0:02:47]}  Rfe8 {[%clk 0:00:44]} 17. Re1 {[%clk 0:02:46]}  Qg4 {[%clk 0:00:34]} 18. h3 {[%clk 0:02:44]}  Qd7 {[%clk 0:00:32]} 19. Nd5 {[%clk 0:02:44]}  Reb8 {[%clk 0:00:24]} 20. Rc1 {[%clk 0:02:42]}  Na5 {[%clk 0:00:20]} 21. Qc2 {[%clk 0:02:32]}  Rb7 {[%clk 0:00:15]} 22. b4 {[%clk 0:02:32]} 1-0


[Site "https://www.chess.com"]

[Event "Titled Tuesday Blitz March 22 Early 2022"]
[White "Perez Gormaz, Matias"]
[Black "Avazkhonov, Alikhon"]
[WhiteFideId "3406342"]
[BlackFideId "14208504"]
[WhiteElo "2327"]
[BlackElo "1739"]
[Result "1-0"]
[Round "02"]
[TimeControl "180+1"]
[Date "2022.03.22"]
[WhiteClock "0:00:53"]
[BlackClock "0:00:03"]

1. e4 {[%clk 0:02:59]}  c5 {[%clk 0:02:56]} 2. Nf3 {[%clk 0:02:59]}  d6 {[%clk 0:02:56]} 3. g3 {[%clk 0:02:58]}  e6 {[%clk 0:02:50]} 4. Bg2 {[%clk 0:02:59]}  Nc6 {[%clk 0:02:48]} 5. O-O {[%clk 0:02:59]}  g6 {[%clk 0:02:49]} 6. d4 {[%clk 0:02:57]}  cxd4 {[%clk 0:02:46]} 7. Nxd4 {[%clk 0:02:58]}  Bg7 {[%clk 0:02:46]} 8. Nb5 {[%clk 0:02:58]}  Be5 {[%clk 0:02:18]} 9. Be3 {[%clk 0:02:46]}  a6 {[%clk 0:02:13]} 10. Nd4 {[%clk 0:02:44]}  Nge7 {[%clk 0:01:51]} 11. Nc3 {[%clk 0:02:38]}  O-O {[%clk 0:01:50]} 12. f4 {[%clk 0:02:35]}  Bg7 {[%clk 0:01:45]} 13. Qd2 {[%clk 0:02:34]}  Nxd4 {[%clk 0:01:33]} 14. Bxd4 {[%clk 0:02:35]}  Nc6 {[%clk 0:01:33]} 15. Bxg7 {[%clk 0:02:34]}  Kxg7 {[%clk 0:01:33]} 16. Kh1 {[%clk 0:02:29]}  Qc7 {[%clk 0:01:12]} 17. Rad1 {[%clk 0:02:28]}  Rd8 {[%clk 0:01:12]} 18. f5 {[%clk 0:02:27]}  f6 {[%clk 0:00:47]} 19. Rf4 {[%clk 0:02:03]}  g5 {[%clk 0:00:42]} 20. Rf2 {[%clk 0:02:04]}  Ne5 {[%clk 0:00:40]} 21. Rdf1 {[%clk 0:01:59]}  Ng4 {[%clk 0:00:29]} 22. Re2 {[%clk 0:01:58]}  Ne5 {[%clk 0:00:21]} 23. h3 {[%clk 0:01:55]}  exf5 {[%clk 0:00:19]} 24. exf5 {[%clk 0:01:54]}  Rb8 {[%clk 0:00:12]} 25. Nd5 {[%clk 0:01:53]}  Qf7 {[%clk 0:00:12]} 26. Qa5 {[%clk 0:01:46]}  Bd7 {[%clk 0:00:11]} 27. b3 {[%clk 0:01:46]}  Bc6 {[%clk 0:00:11]} 28. c4 {[%clk 0:01:45]}  h5 {[%clk 0:00:08]} 29. Rd1 {[%clk 0:01:45]}  g4 {[%clk 0:00:06]} 30. h4 {[%clk 0:01:44]}  Re8 {[%clk 0:00:06]} 31. Rde1 {[%clk 0:01:40]}  Nf3 {[%clk 0:00:05]} 32. Bxf3 {[%clk 0:01:33]}  gxf3 {[%clk 0:00:06]} 33. Rf2 {[%clk 0:00:54]}  Rxe1+ {[%clk 0:00:06]} 34. Qxe1 {[%clk 0:00:54]}  Re8 {[%clk 0:00:06]} 35. Qd1 {[%clk 0:00:53]}  Bxd5 {[%clk 0:00:07]} 36. cxd5 {[%clk 0:00:54]}  Re3 {[%clk 0:00:05]} 37. Rxf3 {[%clk 0:00:52]}  Qe7 {[%clk 0:00:04]} 38. Rxe3 {[%clk 0:00:52]}  Qxe3 {[%clk 0:00:05]} 39. Qxh5 {[%clk 0:00:52]}  Qe1+ {[%clk 0:00:04]} 40. Kg2 {[%clk 0:00:51]}  Qd2+ {[%clk 0:00:05]} 41. Kh3 {[%clk 0:00:52]}  Qxd5 {[%clk 0:00:03]} 42. Qg6+ {[%clk 0:00:52]}  Kf8 {[%clk 0:00:03]} 43. Qxf6+ {[%clk 0:00:53]}  Ke8 {[%clk 0:00:04]} 44. Qe6+ {[%clk 0:00:52]}  Qxe6 {[%clk 0:00:04]} 45. fxe6 {[%clk 0:00:53]}  Ke7 {[%clk 0:00:05]} 46. Kg4 {[%clk 0:00:54]}  Kxe6 {[%clk 0:00:06]} 47. Kf4 {[%clk 0:00:55]}  d5 {[%clk 0:00:04]} 48. Ke3 {[%clk 0:00:55]}  Ke5 {[%clk 0:00:04]} 49. g4 {[%clk 0:00:55]}  b5 {[%clk 0:00:04]} 50. h5 {[%clk 0:00:55]}  b4 {[%clk 0:00:05]} 51. h6 {[%clk 0:00:54]}  a5 {[%clk 0:00:03]} 52. h7 {[%clk 0:00:53]} 1-0


[Site "https://www.chess.com"]